bitfinex-derivatives/quotes_SOLF0:USTF0_20240912
["timestamp","ask_amount","ask_price","bid_price","bid_amount"]
[1726183332136,7.89,136.16,136.14,3.305]
[1726183332344,3.3044,136.18,136.12,15.238]
[1726183332519,7.89,136.16,136.12,15.238]
[1726183332722,7.89,136.16,136.14,3.3051]
[1726183334532,3.304,136.19,136.16,3.3046]
[1726183334732,7.89,136.18,136.16,3.3046]
[1726183335831,3.3043,136.18,136.15,3.3049]
[1726183336032,11.1943,136.18,136.14,7.89]
[1726183336331,7.89,136.17,136.13,9.1903]
[1726183336530,7.89,136.17,136.14,3.3051]
[1726183336730,11.1945,136.17,136.14,3.3051]
[1726183338223,2.4677,136.22,136.15,3.3048]
[1726183338431,4.99350874,136.24,136.14,7.89]
[1726183338624,7.89,136.18,136.14,7.89]
[1726183339033,11.1942,136.18,136.15,3.3049]
[1726183339229,3.3042,136.18,136.13,1.3003]
[1726183339424,7.45390874,136.24,136.13,1.3003]
[1726183339924,7.89,136.15,136.13,1.3003]
[1726183340127,7.89,136.15,136.12,7.348]
[1726183340128,11.195,136.15,136.12,7.348]
[1726183340539,7.89,136.15,136.12,7.348]
[1726183341945,7.89,136.15,136.12,10.6537]
[1726183350239,11.195,136.15,136.12,10.6537]
[1726183350442,7.89,136.15,136.12,10.6537]
[1726183351340,11.1951,136.15,136.12,10.6537]
[1726183362161,3.3047,136.16,136.13,3.3053]
[1726183362460,7.89,136.14,136.12,7.348]
[1726183363558,7.89,136.14,136.12,10.6536]
[1726183372769,7.89,136.14,136.12,3.3056]
[1726183379878,7.89,136.13,136.11,36.1327635]
[1726183380461,7.89,136.13,136.11,39.4386635]
[1726183381066,11.1955,136.13,136.11,36.1327635]
[1726183381769,7.89,136.13,136.11,36.1327635]
[1726183381975,7.89,136.13,136.11,39.4386635]
[1726183384078,3.3053,136.14,136.11,39.4386635]
[1726183384489,7.89,136.14,136.12,3.3057]
[1726183385169,7.89,136.14,136.11,36.1327635]
[1726183385170,11.1948,136.16,136.13,3.3054]
[1726183385371,7.89,136.16,136.13,3.3054]
[1726183385885,7.89,136.16,136.14,3.3051]
[1726183386481,3.3042,136.19,136.13,7.89]
[1726183386788,3.3042,136.19,136.15,7.89]
[1726183386789,7.89,136.19,136.15,7.89]
[1726183386976,7.45390874,136.24,136.15,7.89]
[1726183387173,7.45390874,136.24,136.17,3.3044]
[1726183387174,11.1938,136.2,136.17,3.3044]
[1726183387578,7.89,136.2,136.15,9.1948]
[1726183388085,7.89,136.18,136.15,9.1948]
[1726183388285,7.89,136.17,136.15,1.3048]
[1726183388477,7.89,136.16,136.14,1.3757]
[1726183388879,7.89,136.16,136.14,4.6809]
[1726183390387,7.89,136.16,136.13,10.6533]
[1726183391292,7.89,136.15,136.13,7.348]
[1726183391488,7.89,136.14,136.12,3.3056]
[1726183394580,7.89,136.15,136.13,3.3054]
[1726183395794,11.195,136.15,136.12,3.3056]
[1726183396183,7.89,136.14,136.12,3.3056]
[1726183403792,11.1953,136.14,136.12,3.3056]
[1726183404299,7.89,136.14,136.12,3.3056]
[1726183405507,11.1952,136.14,136.11,40.7433635]
[1726183408292,11.1952,136.14,136.11,39.4385635]
[1726183408991,7.89,136.13,136.11,39.4385635]
[1726183413499,7.89,136.12,136.11,36.1327635]
[1726183413682,11.1957,136.12,136.11,36.1327635]
[1726183413885,3.8374,136.16,136.1,25.55498641]
[1726183414194,7.89,136.13,136.1,28.86098641]
[1726183414394,7.89,136.13,136.1,25.55498641]
[1726183414795,3.305,136.15,136.11,3.3058]
[1726183414992,7.89,136.14,136.1,37.16319896]
[1726183415496,7.89,136.14,136.12,3.3055]
[1726183415696,7.89,136.14,136.1,25.55498641]
[1726183415995,7.89,136.13,136.1,25.55498641]
[1726183416902,7.89,136.13,136.11,3.3059]
[1726183418494,7.89,136.13,136.1,28.86108641]
[1726183418694,11.1955,136.13,136.1,28.86108641]
[1726183419296,3.3057,136.12,136.1,25.55498641]
[1726183419507,7.89,136.11,136.1,25.55498641]
[1726183422512,7.89,136.12,136.1,25.55498641]
[1726183422718,7.89,136.12,136.1,28.86108641]
[1726183429039,3.3053,136.14,136.11,3.3059]
[1726183429238,7.89,136.15,136.1,33.44498641]
[1726183429432,7.89,136.15,136.11,3.65941647]
[1726183429630,7.89,136.16,136.11,11.54941647]
[1726183429830,11.1949,136.16,136.12,3.3056]
[1726183430340,11.1949,136.16,136.11,11.54941647]
[1726183430535,11.1949,136.16,136.12,3.3056]
[1726183432134,11.1946,136.17,136.14,3.3052]
[1726183432932,3.3047,136.16,136.14,3.3052]
[1726183433535,7.89,136.15,136.13,3.3054]
[1726183442547,3.3044,136.18,136.14,7.89]
[1726183442747,3.8432,136.26,136.17,7.89]
[1726183442937,7.89,136.21,136.17,7.89]
[1726183443138,11.1934,136.22,136.19,3.304]
[1726183444742,3.3035,136.21,136.18,3.3041]
[1726183444945,11.1935,136.21,136.18,3.3041]
[1726183448043,3.3038,136.2,136.17,3.3044]
[1726183450050,11.1938,136.2,136.17,3.3044]
[1726183450451,3.3041,136.19,136.16,3.3046]
[1726183450757,11.1941,136.19,136.16,3.3046]
[1726183456563,3.3043,136.18,136.15,11.1949]
[1726183457557,7.89,136.19,136.15,7.89]
[1726183457777,11.1941,136.19,136.16,3.3047]
[1726183460852,3.3038,136.2,136.17,3.3043]
[1726183461065,7.89,136.19,136.17,3.3043]
[1726183461966,11.194,136.19,136.16,3.3046]
[1726183467274,3.3043,136.18,136.15,3.3048]
[1726183467475,11.1943,136.18,136.15,3.3048]
[1726183479080,3.74210371,136.22,136.14,7.352]
[1726183479285,3.8432,136.26,136.16,7.89]
[1726183479473,7.89,136.22,136.17,15.242]
[1726183479676,11.1934,136.22,136.18,3.304]
[1726183482578,3.3034,136.22,136.19,3.304]
[1726183482784,7.44416966,136.26,136.18,7.89]
[1726183482983,7.44416966,136.26,136.2,7.89]
[1726183482984,1.4004,136.26,136.2,7.89]
[1726183483185,7.89,136.25,136.21,11.1933]
[1726183483970,11.1926,136.25,136.21,11.1933]
[1726183485676,11.1928,136.24,136.21,3.3033]
[1726183486781,7.89,136.24,136.22,3.3032]
[1726183486985,7.89,136.26,136.22,3.3032]
[1726183488479,7.89,136.24,136.2,15.242]
[1726183489785,7.89,136.24,136.21,3.3034]
[1726183492089,11.1928,136.24,136.21,3.3034]
[1726183492293,7.89,136.23,136.2,10.6557]
[1726183492670,11.1932,136.23,136.2,7.352]
[1726183493278,7.89,136.22,136.19,8.7204]
[1726183494795,11.1933,136.22,136.19,12.0243]
[1726183501997,11.1933,136.22,136.21,25.55498641]
[1726183507905,3.3033,136.22,136.21,25.55498641]
[1726183508089,11.1933,136.22,136.21,25.55498641]
[1726183512800,11.1933,136.22,136.15,176.46975485]
[1726183512991,3.74403407,136.26,136.15,3.3048]
[1726183512992,11.1944,136.18,136.15,3.3048]
[1726183515495,11.1944,136.18,136.14,11.1951]
[1726183518603,3.3045,136.17,136.14,11.1951]
[1726183518995,3.3048,136.16,136.13,4.7026]
[1726183519195,11.1948,136.16,136.13,4.7026]
[1726183520099,11.1948,136.16,136.13,29.65284963]
[1726183520303,7.89,136.14,136.13,24.95024963]
[1726183521909,11.1952,136.14,136.13,24.95024963]
[1726183537213,1.1619,136.2,136.13,24.95024963]
[1726183537214,3.3051,136.15,136.13,24.95024963]
[1726183537419,7.89,136.14,136.13,24.95024963]
[1726183542224,11.1952,136.14,136.13,24.95024963]
[1726183542422,3.3052,136.14,136.13,24.95024963]
[1726183542722,11.1952,136.14,136.13,24.95024963]
[1726183542921,7.89,136.14,136.13,24.95024963]
[1726183545529,11.1952,136.14,136.13,24.95024963]
[1726183545829,7.89,136.14,136.13,24.95024963]
[1726183546627,1.1619,136.2,136.13,24.95024963]
[1726183546833,7.89,136.14,136.13,24.95024963]
[1726183547534,3.69545824,136.22,136.14,3.3051]
[1726183547729,7.89,136.17,136.14,3.3051]
[1726183548931,11.1945,136.17,136.14,3.3051]
[1726183549621,11.1948,136.16,136.13,32.34564963]
[1726183549824,7.89,136.15,136.13,29.04024963]
[1726183554040,11.195,136.15,136.13,29.04024963]
[1726183554732,7.89,136.14,136.13,27.67384963]
[1726183554936,11.1952,136.14,136.13,27.67384963]
[1726183555326,11.1952,136.14,136.13,26.25774963]
[1726183555531,11.1952,136.14,136.13,24.95024963]
[1726183571540,3.3059,136.12,136.1,21.15656194]
[1726183571742,7.89,136.11,136.1,21.15656194]
[1726183574629,11.1959,136.11,136.1,21.15656194]
[1726183575552,7.89,136.11,136.1,21.15656194]
[1726183577052,3.8441,136.2,136.1,21.15656194]
[1726183577245,7.89,136.12,136.1,21.15656194]
[1726183579349,7.89,136.11,136.1,21.15656194]
[1726183597060,11.1959,136.11,136.1,21.15656194]
[1726183604874,3.8441,136.2,136.1,21.15656194]
[1726183605063,7.89,136.13,136.1,21.15656194]
[1726183605562,7.89,136.12,136.1,21.15656194]
[1726183607677,7.89,136.11,136.1,21.15656194]
[1726183609659,11.1959,136.11,136.1,21.15656194]
[1726183622880,7.89,136.11,136.1,21.15656194]
[1726183624983,7.89,136.11,136.1,24.46276194]
[1726183625282,7.89,136.12,136.1,24.46276194]
[1726183625863,7.89,136.12,136.11,3.3059]
[1726183626377,7.89,136.12,136.1,24.46256194]
[1726183629781,7.89,136.12,136.11,3.3059]
[1726183630878,7.89,136.12,136.1,24.46266194]
[1726183634190,11.1958,136.12,136.1,21.15656194]
[1726183634407,7.89,136.11,136.1,21.15656194]
[1726183637082,11.1959,136.11,136.1,21.15656194]
[1726183639197,7.89,136.11,136.1,21.15656194]
[1726183648804,3.8441,136.2,136.1,24.46266194]
[1726183649009,7.89,136.12,136.1,21.15656194]
[1726183649200,7.89,136.11,136.1,21.15656194]
[1726183651204,11.1959,136.11,136.1,21.15656194]
[1726183659216,3.3064,136.09,136.08,56.22126211]
[1726183659411,11.1964,136.09,136.08,56.22126211]
[1726183666708,7.89,136.09,136.07,3.09053202]
[1726183666918,7.89,136.08,136.06,5.88333018]
[1726183667105,7.89,136.07,136.06,5.88333018]
[1726183667306,3.8678,136.13,136.06,5.88333018]
[1726183667513,11.1969,136.07,136.06,5.88333018]
[1726183667814,7.89,136.07,136.06,5.88333018]
[1726183668009,3.8678,136.13,136.06,5.88333018]
[1726183668324,7.89,136.08,136.06,5.88333018]
[1726183670616,3.8678,136.13,136.06,9.19043018]
[1726183670811,7.89,136.08,136.06,5.88333018]
[1726183672431,7.89,136.07,136.06,5.88333018]
[1726183673229,11.1969,136.07,136.06,5.88333018]
[1726183706448,3.3068,136.08,136.06,5.88333018]
[1726183706650,7.89,136.07,136.06,5.88333018]
[1726183708057,3.62945177,136.14,136.06,5.88333018]
[1726183708250,7.89,136.11,136.07,7.357]
[1726183708563,7.89,136.12,136.07,19.3162]
[1726183708962,7.89,136.12,136.09,3.3063]
[1726183710564,3.3056,136.13,136.1,3.3061]
[1726183710565,7.89,136.13,136.1,3.3061]
[1726183710975,3.305,136.15,136.11,3.3058]
[1726183711164,7.89,136.14,136.11,3.3058]
[1726183711655,11.1953,136.14,136.11,3.3058]
[1726183713663,7.89,136.13,136.1,3.3061]
[1726183713966,11.1955,136.13,136.1,3.3061]
[1726183722368,6.3315359,136.21,136.13,3.3052]
[1726183722569,7.89,136.17,136.13,3.3052]
[1726183723161,3.3049,136.16,136.13,3.3052]
[1726183723360,7.89,136.15,136.12,4.6269]
[1726183725678,11.195,136.15,136.12,4.6269]
[1726183726179,7.89,136.15,136.13,3.3054]
[1726183728479,7.89,136.14,136.12,1.3213]
[1726183729578,11.1952,136.14,136.12,1.3213]
[1726183731876,11.1948,136.16,136.13,3.3054]
[1726183732282,11.1948,136.16,136.13,11.1954]
[1726183734392,7.89,136.16,136.13,11.1954]
[1726183737693,11.1948,136.16,136.12,4.6269]
[1726183738181,11.1948,136.16,136.12,1.3213]
[1726183739493,11.1948,136.16,136.13,3.3054]
[1726183741192,11.1948,136.16,136.12,4.6269]
[1726183741386,11.1952,136.14,136.12,1.3213]
[1726183741699,7.89,136.14,136.12,1.3213]
[1726183743587,11.1952,136.14,136.12,1.3213]
[1726183743989,11.1952,136.14,136.11,3.3057]
[1726183744189,3.3055,136.13,136.11,3.3057]
[1726183745396,11.1953,136.14,136.11,3.3057]
[1726183746990,3.3055,136.13,136.11,3.3057]
[1726183748199,3.3055,136.13,136.1,10.6631]
[1726183748386,11.1955,136.13,136.1,10.6631]
[1726183749996,3.3057,136.12,136.1,7.357]
[1726183752500,3.3057,136.12,136.09,11.1963]
[1726183763217,11.1957,136.12,136.09,11.1963]
[1726183763926,11.1957,136.12,136.09,3.3063]
[1726183764116,11.196,136.11,136.08,4.7013]
[1726183765731,3.63756613,136.14,136.07,18.025]
[1726183765732,7.89,136.1,136.07,12.0689]
[1726183766329,11.1963,136.1,136.07,12.0689]
[1726183766531,11.1963,136.1,136.07,10.6638]
[1726183767826,3.3064,136.09,136.07,10.6638]
[1726183768426,3.64718853,136.14,136.07,7.357]
[1726183768738,7.89,136.11,136.07,7.357]
[1726183769929,3.3062,136.1,136.08,3.3065]
[1726183771126,3.3062,136.1,136.07,10.6639]
[1726183773337,11.1962,136.1,136.07,10.6639]
[1726183785144,7.89,136.09,136.07,10.6639]
[1726183788643,7.89,136.08,136.06,5.88333018]
[1726183788841,3.8679,136.13,136.06,5.88333018]
[1726183789143,7.89,136.07,136.06,5.88333018]
[1726183791859,11.1969,136.07,136.06,5.88333018]
[1726183793954,3.8679,136.13,136.06,5.88333018]
[1726183794157,7.89,136.09,136.06,5.88333018]
[1726183794853,7.89,136.09,136.06,9.19033018]
[1726183797858,11.1964,136.09,136.06,9.19033018]
[1726183799865,3.3062,136.1,136.07,3.3067]
[1726183800046,7.89,136.09,136.07,3.3067]
[1726183800355,7.89,136.09,136.06,5.88333018]
[1726183800765,11.1964,136.09,136.06,9.19033018]
[1726183803062,3.72647236,136.14,136.06,5.88333018]
[1726183803265,3.9191,136.19,136.08,7.89]
[1726183803571,7.89,136.13,136.08,9.2839]
[1726183803770,11.1956,136.13,136.1,3.3061]
[1726183803963,7.89,136.14,136.09,7.89]
[1726183804167,3.9191,136.19,136.11,11.1959]
[1726183804464,7.89,136.13,136.09,7.89]
[1726183804871,7.89,136.12,136.1,3.3062]
[1726183805371,7.89,136.11,136.08,2.7315]
[1726183805568,7.89,136.11,136.09,3.3063]
[1726183805869,7.89,136.12,136.08,10.6215]
[1726183806670,7.89,136.12,136.1,3.306]
[1726183810267,3.3051,136.15,136.11,7.89]
[1726183810469,11.1951,136.15,136.11,7.89]
[1726183810969,11.1951,136.15,136.12,3.3056]
[1726183812266,7.89,136.15,136.13,3.3054]
[1726183813173,11.1948,136.16,136.13,3.3054]
[1726183820386,11.1948,136.16,136.14,3.3052]
[1726183820680,7.89,136.16,136.14,3.3052]
[1726183821485,11.1947,136.16,136.14,3.3052]
[1726183821789,11.1947,136.16,136.13,3.3053]
[1726183822975,3.6753359,136.21,136.12,7.89]
[1726183823282,1.3722,136.24,136.17,7.89]
[1726183823692,7.89,136.22,136.17,7.89]
[1726183824189,3.303,136.23,136.19,3.304]
[1726183824490,11.193,136.23,136.19,3.304]
[1726183826194,7.89,136.23,136.2,3.3037]
[1726183826572,3.852,136.29,136.2,3.3037]
[1726183826573,3.3024,136.26,136.22,3.3031]
[1726183826777,7.89,136.25,136.22,3.3031]
[1726183826981,3.852,136.29,136.2,7.89]
[1726183827178,7.89,136.24,136.2,7.89]
[1726183827478,7.89,136.24,136.21,3.3033]
[1726183827678,7.89,136.24,136.19,7.89]
[1726183828288,7.89,136.24,136.21,3.3035]
[1726183829588,7.89,136.24,136.22,3.3031]
[1726183830797,7.89,136.25,136.22,3.3031]
[1726183832291,11.1924,136.26,136.23,3.303]
[1726183836198,2.6885,136.29,136.22,7.89]
[1726183836393,2.5525,136.34,136.23,7.89]
[1726183836697,7.89,136.28,136.23,7.89]
[1726183836904,11.1919,136.28,136.24,3.3027]
[1726183837686,3.3021,136.27,136.24,3.3027]
[1726183841203,11.1923,136.26,136.18,8.7047]
[1726183841400,11.1923,136.26,136.21,7.89]
[1726183842110,3.3026,136.25,136.22,3.3031]
[1726183842606,11.1926,136.25,136.22,3.3031]
[1726183843190,3.3029,136.24,136.21,3.3034]
[1726183844814,7.89,136.23,136.2,3.3037]
[1726183845422,7.89,136.22,136.18,1.3477]
[1726183845621,7.89,136.2,136.17,1.3751]
[1726183846015,7.89,136.22,136.18,7.89]
[1726183846711,2.4812,136.26,136.2,7.89]
[1726183846911,7.89,136.24,136.2,7.89]
[1726183847125,7.89,136.23,136.19,7.89]
[1726183847706,11.1932,136.23,136.19,11.1938]
[1726183847906,7.89,136.23,136.19,11.1938]
[1726183848323,7.89,136.23,136.2,3.3037]
[1726183848324,11.1931,136.23,136.2,3.3037]
[1726183849908,3.3033,136.22,136.19,11.1939]
[1726183850424,7.89,136.21,136.17,1.3751]
[1726183850614,7.89,136.21,136.17,9.2651]
[1726183851018,11.1937,136.21,136.18,3.3041]
[1726183853117,3.3038,136.2,136.18,3.3041]
[1726183853426,3.3038,136.2,136.17,12.5695]
[1726183854023,3.3038,136.2,136.17,4.6795]
[1726183854220,7.89,136.21,136.17,4.6795]
[1726183854832,3.3039,136.2,136.17,4.6795]
[1726183859527,3.3039,136.2,136.17,3.3044]
[1726183860735,11.1941,136.19,136.16,3.3046]
[1726183860938,4.99757332,136.25,136.12,1.3028]
[1726183860939,7.89,136.18,136.12,1.3028]
[1726183861324,4.99757332,136.25,136.15,7.89]
[1726183861525,4.99757332,136.25,136.17,7.89]
[1726183861732,3.3034,136.22,136.19,3.304]
[1726183862027,3.3034,136.22,136.19,11.194]
[1726183862234,1.3324,136.25,136.19,7.89]
[1726183862529,7.89,136.26,136.22,7.89]
[1726183863341,3.3027,136.25,136.22,7.89]
[1726183863541,7.89,136.26,136.22,7.89]
[1726183863727,3.3017,136.29,136.22,7.89]
[1726183863934,7.89,136.26,136.22,7.89]
[1726183865637,7.89,136.26,136.18,3.62865751]
[1726183865638,11.1928,136.24,136.2,3.3037]
[1726183865840,7.89,136.23,136.18,7.89]
[1726183866237,3.3032,136.23,136.19,7.89]
[1726183867336,7.89,136.25,136.2,7.89]
[1726183867645,7.89,136.26,136.22,7.89]
[1726183868648,3.3027,136.25,136.22,11.1931]
[1726183868948,7.89,136.26,136.22,11.1931]
[1726183869837,11.1924,136.26,136.22,11.1931]
[1726183870039,3.3024,136.26,136.22,11.1931]
[1726183870348,7.89,136.28,136.23,11.1928]
[1726183870729,3.3021,136.27,136.23,11.1928]
[1726183872545,7.89,136.27,136.23,7.89]
[1726183872755,7.89,136.24,136.17,4.9630291]
[1726183872946,7.89,136.24,136.19,7.89]
[1726183873342,3.3032,136.23,136.2,3.3036]
[1726183873652,7.89,136.24,136.19,7.89]
[1726183874456,11.1929,136.24,136.21,3.3035]
[1726183875346,11.1929,136.24,136.2,3.3036]
[1726183875650,7.89,136.22,136.18,7.89]
[1726183876034,3.3037,136.21,136.18,3.3041]
[1726183877546,3.3037,136.21,136.18,11.1941]
[1726183877852,11.1938,136.2,136.17,12.4972]
[1726183878749,11.1941,136.19,136.16,6.0159]
[1726183878950,7.89,136.19,136.16,1.4119]
[1726183879142,7.89,136.19,136.14,173.7074664]
[1726183879354,11.1944,136.18,136.15,3.3049]
[1726183879955,7.89,136.18,136.14,165.8174664]
[1726183880254,3.7991,136.24,136.12,11.9812]
[1726183880255,11.1945,136.17,136.12,11.9812]
[1726183880558,11.1943,136.18,136.14,3.305]
[1726183881143,3.3045,136.17,136.14,3.305]
[1726183881841,11.1945,136.17,136.14,3.305]
[1726183882655,11.1945,136.17,136.13,3.3053]
[1726183883551,11.1945,136.17,136.14,3.3052]
[1726183885055,3.3047,136.16,136.13,3.3054]
[1726183885263,11.1947,136.16,136.13,3.3054]
[1726183888363,11.1951,136.15,136.12,4.6993]
[1726183889660,11.1951,136.15,136.12,12.5893]
[1726183890167,7.89,136.15,136.13,3.3054]
[1726183899275,11.195,136.15,136.13,3.3054]
[1726183902173,11.195,136.15,136.12,4.6993]
[1726183902374,11.1952,136.14,136.12,1.3937]
[1726183902572,11.1952,136.14,136.1,7.89]
[1726183903061,11.1952,136.14,136.11,3.3058]
[1726183903580,3.3051,136.15,136.12,3.3057]
[1726183903780,11.1951,136.15,136.12,3.3057]
[1726183904565,3.3051,136.15,136.12,3.3057]
[1726183904973,11.1951,136.15,136.12,3.3057]
[1726183917479,11.1951,136.15,136.13,3.3054]
[1726183917675,3.7991,136.24,136.11,7.89]
[1726183917883,7.39802733,136.24,136.13,7.89]
[1726183918086,7.89,136.17,136.14,3.3051]
[1726183918489,11.1946,136.17,136.14,3.3051]
[1726183919092,11.1947,136.16,136.14,3.3051]
[1726183919289,11.1947,136.16,136.13,3.3054]
[1726183920499,11.1947,136.16,136.14,3.3052]
[1726183921193,11.1947,136.16,136.13,3.3054]
[1726183922303,3.305,136.15,136.13,3.3054]
[1726183922503,11.195,136.15,136.13,3.3054]
[1726183923200,3.3052,136.14,136.11,3.3058]
[1726183923416,11.1952,136.14,136.11,3.3058]
[1726183923809,11.1952,136.14,136.1,7.89]
[1726183924617,11.1952,136.14,136.11,3.3059]
[1726183925814,3.3052,136.14,136.11,3.3059]
[1726183926015,7.89,136.17,136.14,3.3052]
[1726183926211,7.89,136.18,136.15,7.89]
[1726183926509,7.39802733,136.24,136.15,7.89]
[1726183926510,7.89,136.19,136.15,7.89]
[1726183927513,2.6365,136.24,136.17,7.89]
[1726183927723,11.1931,136.23,136.19,3.3039]
[1726183927910,11.1931,136.23,136.19,7.89]
[1726183927911,7.89,136.23,136.19,7.89]
[1726183928623,3.3029,136.24,136.2,7.89]
[1726183928624,7.89,136.24,136.2,7.89]
[1726183928921,7.89,136.26,136.22,7.89]
[1726183929111,3.8481,136.29,136.22,7.89]
[1726183929618,7.89,136.26,136.23,3.3029]
[1726183930208,7.89,136.26,136.22,7.89]
[1726183930209,11.1923,136.26,136.22,11.1932]
[1726183930409,7.89,136.25,136.22,11.1932]
[1726183931322,7.89,136.24,136.21,3.3035]
[1726183931624,7.89,136.22,136.16,7.357]
[1726183931922,7.89,136.22,136.19,7.89]
[1726183932109,7.89,136.24,136.19,7.89]
[1726183932311,7.89,136.25,136.21,7.89]
[1726183932922,2.6844,136.29,136.21,7.89]
[1726183933118,7.89,136.25,136.21,7.89]
[1726183933812,7.89,136.25,136.22,3.3031]
[1726183937022,11.1924,136.26,136.22,11.1931]
[1726183937211,11.1924,136.26,136.23,3.3028]
[1726183937212,7.89,136.26,136.23,3.3028]
[1726183937827,7.89,136.26,136.24,3.3028]
[1726183938026,11.1921,136.27,136.24,3.3028]
[1726183944319,7.89,136.27,136.23,7.89]
[1726183944527,3.3019,136.28,136.25,11.1925]
[1726183944826,7.89,136.29,136.25,7.89]
[1726183945231,1.4008,136.34,136.26,7.89]
[1726183945413,7.89,136.31,136.26,7.89]
[1726183945822,3.3016,136.29,136.26,7.89]
[1726183946024,11.1916,136.29,136.25,7.89]
[1726183946735,11.1916,136.29,136.26,3.3022]
[1726183946936,3.3018,136.28,136.22,3.426995]
[1726183947115,3.3018,136.28,136.24,7.89]
[1726183947320,7.89,136.29,136.26,3.3023]
[1726183947527,11.1917,136.29,136.26,3.3023]
[1726183948136,3.3018,136.28,136.25,3.3024]
[1726183948433,7.89,136.29,136.24,7.89]
[1726183948731,3.3018,136.28,136.24,7.89]
[1726183949329,3.3018,136.28,136.25,3.3024]
[1726183953028,3.3018,136.28,136.25,11.1924]
[1726183953639,7.89,136.27,136.22,11.316995]
[1726183953935,7.89,136.24,136.22,3.426995]
[1726183954632,11.193,136.23,136.22,3.426995]
[1726183955025,11.1928,136.24,136.22,3.426995]
[1726183955227,6.6013,136.33,136.22,11.316995]
[1726183955427,7.89,136.26,136.22,11.316995]
[1726183956019,11.1925,136.26,136.23,3.3029]
[1726183956219,7.89,136.26,136.23,3.3029]
[1726183956425,7.89,136.26,136.22,11.316995]
[1726183957322,7.89,136.26,136.23,3.303]
[1726183958533,11.1924,136.26,136.23,3.303]
[1726183959536,3.3026,136.25,136.22,6.730095]
[1726183960129,11.1924,136.26,136.23,3.303]
[1726183960526,7.89,136.26,136.22,11.316995]
[1726183960724,3.3026,136.25,136.22,6.730095]
[1726183963937,11.1926,136.25,136.22,6.730095]
[1726183965629,3.3028,136.24,136.22,6.730095]
[1726183966430,3.3028,136.24,136.22,3.426995]
[1726183972444,3.303,136.23,136.22,3.426995]
[1726183972946,11.193,136.23,136.22,3.426995]
[1726183975149,3.3033,136.22,136.21,3.30311295]
[1726183975456,11.1933,136.22,136.21,3.30311295]
[1726183976946,3.3037,136.2,136.19,4.52542924]
[1726183977144,11.1937,136.2,136.19,4.52542924]
[1726183979645,3.304,136.19,136.18,4.42345958]
[1726183979836,11.194,136.19,136.18,4.42345958]
[1726183985152,3.3045,136.17,136.16,4.09857362]
[1726183985352,11.1945,136.17,136.16,4.09857362]
[1726183989156,11.1943,136.18,136.16,4.09857362]
[1726183989656,7.89,136.18,136.16,4.09857362]
[1726183990445,3.3045,136.17,136.16,4.09857362]
[1726183992773,11.1943,136.18,136.16,4.09857362]
[1726183994958,7.89,136.18,136.16,4.09857362]
[1726183995162,3.3045,136.17,136.16,4.09857362]
[1726183995368,11.1945,136.17,136.16,4.09857362]
[1726183997949,3.3045,136.17,136.16,4.09857362]
[1726183998158,7.89,136.18,136.16,4.09857362]
[1726183998763,3.3045,136.17,136.16,4.09857362]
[1726183999159,1.1633,136.26,136.16,4.09857362]